bitfinex/quotes_BTCUSD_20250826
["timestamp","ask_amount","ask_price","bid_price","bid_amount"]
[1756237816815,0.51972681,111280.0,111270.0,0.2461715]
[1756237817039,0.027031,111290.0,111280.0,0.19717583]
[1756237817251,0.1937416,111310.0,111290.0,0.17971062]
[1756237817463,0.1937416,111310.0,111300.0,0.00492]
[1756237817882,0.1937416,111310.0,111300.0,0.18461451]
[1756237818098,0.17967837,111310.0,111300.0,0.18461451]
[1756237818528,0.17967837,111310.0,111300.0,0.00492]
[1756237818745,0.17967837,111310.0,111300.0,0.00506254]
[1756237818968,0.17967837,111310.0,111300.0,0.00706254]
[1756237819463,0.18063837,111310.0,111300.0,0.00706254]
[1756237819692,0.34587837,111310.0,111300.0,0.00806254]
[1756237819916,0.18865966,111320.0,111300.0,0.19000323]
[1756237820135,0.69505966,111320.0,111310.0,0.17967837]
[1756237820349,0.34,111320.0,111310.0,0.18459837]
[1756237821428,0.52062223,111320.0,111310.0,0.00492]
[1756237821846,0.51966223,111320.0,111310.0,0.00592]
[1756237823165,0.34,111320.0,111310.0,0.18784434]
[1756237823376,0.34,111320.0,111310.0,0.18559837]
[1756237823590,0.34,111320.0,111310.0,0.35187837]
[1756237824033,0.75702213,111330.0,111320.0,0.17966223]
[1756237824034,0.4395,111330.0,111320.0,0.17966223]
[1756237824261,0.95914609,111330.0,111320.0,0.00198]
[1756237824499,0.95914609,111330.0,111320.0,0.186828]
[1756237824718,0.4395,111330.0,111320.0,0.18458223]
[1756237825154,0.35497195,111340.0,111320.0,0.18458223]
[1756237825367,0.69497195,111340.0,111330.0,0.17964609]
[1756237825594,0.54065454,111340.0,111330.0,0.18356609]
[1756237825842,0.17981701,111350.0,111340.0,0.17962996]
[1756237826055,0.51981701,111350.0,111340.0,0.18160996]
[1756237826268,0.51981701,111350.0,111340.0,0.18454996]
[1756237827146,0.51981701,111350.0,111340.0,0.1846925]
[1756237827356,0.53201765,111350.0,111340.0,0.1846925]
[1756237827598,0.51981701,111350.0,111340.0,0.1846925]
[1756237827798,0.17981383,111350.0,111340.0,0.1846925]
[1756237828328,0.0002,111350.0,111340.0,0.1846925]
[1756237829742,0.17981383,111350.0,111340.0,0.1846925]
[1756237830167,0.17981383,111350.0,111340.0,0.3504925]
[1756237830380,0.17981383,111350.0,111340.0,0.3514925]
[1756237830852,0.1797991,111360.0,111340.0,0.3514925]
[1756237830853,0.16735287,111360.0,111350.0,0.17961383]
[1756237831040,0.16735287,111360.0,111350.0,0.183839]
[1756237831246,0.16735287,111360.0,111350.0,0.00492]
[1756237831674,0.16831287,111360.0,111350.0,0.00492]
[1756237831892,0.16831287,111360.0,111350.0,0.1706]
[1756237832147,0.18024063,111360.0,111350.0,0.1706]
[1756237832343,0.17961383,111350.0,111340.0,0.00014254]
[1756237832579,0.17961383,111350.0,111340.0,0.00308254]
[1756237832783,0.17961383,111350.0,111340.0,0.00506254]
[1756237833647,0.17961383,111350.0,111340.0,0.00606254]
[1756237834096,0.17928063,111360.0,111340.0,0.18793787]
[1756237834318,0.17928063,111360.0,111340.0,0.2390147]
[1756237834820,0.17961383,111350.0,111340.0,0.2390147]
[1756237835036,0.17961383,111350.0,111340.0,0.2400147]
[1756237835249,0.17961383,111350.0,111340.0,0.2380147]
[1756237835469,0.17961383,111350.0,111340.0,0.00506254]
[1756237835688,0.17961383,111350.0,111340.0,0.18793787]
[1756237835896,0.17961383,111350.0,111340.0,0.1846925]
[1756237836064,0.17961383,111350.0,111340.0,0.1856925]
[1756237836253,0.17961383,111350.0,111340.0,0.06005844]
[1756237836466,0.17961383,111350.0,111340.0,0.00830791]
[1756237836868,0.17961383,111350.0,111340.0,0.17714791]
[1756237837131,0.17961383,111350.0,111340.0,0.01030791]
[1756237837346,0.17961383,111350.0,111340.0,0.17890791]
[1756237837518,0.17961383,111350.0,111340.0,0.35853787]
[1756237837727,0.17961383,111350.0,111340.0,0.3562925]
[1756237837926,0.17961383,111350.0,111340.0,0.4107844]
[1756237838334,0.17961383,111350.0,111340.0,0.06255444]
[1756237838687,0.17961383,111350.0,111340.0,0.18993787]
[1756237838897,0.17961383,111350.0,111340.0,0.00806254]
[1756237839103,0.17961383,111350.0,111340.0,0.01030791]
[1756237840299,0.17928063,111360.0,111340.0,0.18993787]
[1756237840516,0.17961383,111350.0,111340.0,0.1876925]
[1756237841149,0.17961383,111350.0,111340.0,0.1866925]
[1756237841360,0.17961383,111350.0,111340.0,0.2411804]
[1756237841807,0.18057383,111350.0,111340.0,0.00214254]
[1756237842035,3.75589452,111350.0,111340.0,0.00214254]
[1756237842480,3.75589452,111350.0,111340.0,0.00314254]
[1756237842481,3.75465683,111350.0,111340.0,0.00314254]
[1756237843122,3.75465683,111350.0,111340.0,0.00114254]
[1756237843889,3.75465683,111350.0,111340.0,0.00014254]
[1756237844301,3.75565683,111350.0,111340.0,0.00014254]
[1756237846112,3.75505683,111350.0,111340.0,0.00014254]
[1756237846539,3.77440907,111350.0,111340.0,0.00014254]
[1756237846926,0.56794307,111350.0,111340.0,0.00527254]
[1756237847135,0.54859083,111350.0,111340.0,0.00527254]
[1756237847333,0.54763083,111350.0,111340.0,0.00527254]
[1756237847758,0.51961383,111350.0,111340.0,0.00527254]
[1756237848356,0.51961383,111350.0,111340.0,0.17431254]
[1756237848982,0.51961383,111350.0,111340.0,0.00527254]
[1756237849317,0.52057383,111350.0,111340.0,0.00014254]
[1756237849726,0.53489058,111350.0,111340.0,0.00014254]
[1756237849855,0.52057383,111350.0,111340.0,0.00014254]
[1756237850720,0.52057383,111350.0,111340.0,0.00114254]
[1756237850933,0.52057383,111350.0,111340.0,0.00627254]
[1756237851595,0.52057383,111350.0,111340.0,0.00423254]
[1756237851858,0.52057383,111350.0,111340.0,0.00114254]
[1756237852980,0.52057383,111350.0,111340.0,0.00627254]
[1756237853408,0.52057383,111350.0,111340.0,0.00114254]
[1756237855239,0.5483887,111350.0,111340.0,0.00114254]
[1756237855434,0.7169887,111350.0,111340.0,0.00114254]
[1756237855649,0.7175887,111350.0,111340.0,0.00114254]
[1756237856136,0.7169887,111350.0,111340.0,0.00114254]
[1756237856351,0.5474287,111350.0,111340.0,0.00627254]
[1756237856837,0.5483887,111350.0,111340.0,0.00627254]
[1756237857268,0.5474287,111350.0,111340.0,0.00627254]
[1756237857497,0.5483887,111350.0,111340.0,0.00627254]
[1756237857728,0.54838803,111350.0,111340.0,0.00627254]
[1756237860181,0.54742803,111350.0,111340.0,0.00627254]
[1756237860391,0.51961383,111350.0,111340.0,0.00627254]
[1756237860819,0.17928063,111360.0,111340.0,0.35558234]
[1756237861038,0.17961383,111350.0,111340.0,0.30272984]
[1756237861714,0.17961383,111350.0,111340.0,0.30481984]
[1756237861925,0.17961383,111350.0,111340.0,0.24403254]
[1756237863740,0.17961383,111350.0,111340.0,0.24503254]
[1756237864149,0.17961383,111350.0,111340.0,0.24515254]
[1756237864374,0.18057383,111350.0,111340.0,0.07022254]
[1756237864574,0.52057383,111350.0,111340.0,0.00114254]
[1756237864787,0.54898969,111350.0,111340.0,0.00114254]
[1756237865643,0.57950192,111350.0,111340.0,0.00114254]
[1756237865846,0.60652092,111350.0,111340.0,0.00114254]
[1756237866050,3.64422692,111350.0,111340.0,0.00114254]
[1756237866263,3.64422692,111350.0,111290.0,0.14172472]
[1756237866264,0.52864534,111320.0,111290.0,0.14172472]
[1756237866471,0.17969245,111310.0,111300.0,0.00288]
[1756237866680,0.18065245,111310.0,111300.0,0.00288]
[1756237867326,0.52065245,111310.0,111300.0,0.00288]
[1756237867537,0.51969245,111310.0,111300.0,0.00802]
[1756237867957,0.51977794,111310.0,111300.0,0.00902]
[1756237868577,0.51977794,111310.0,111300.0,0.19096069]
[1756237868578,8.549e-05,111310.0,111300.0,0.19096069]
[1756237868779,8.549e-05,111310.0,111300.0,0.2801598]
[1756237869332,8.549e-05,111310.0,111300.0,0.76241597]
[1756237869536,8.549e-05,111310.0,111300.0,0.87132701]
[1756237869723,8.549e-05,111310.0,111300.0,0.87232701]
[1756237870321,8.549e-05,111310.0,111300.0,0.87132701]
[1756237870596,8.549e-05,111310.0,111300.0,0.87432701]
[1756237870777,8.549e-05,111310.0,111300.0,0.39507084]
[1756237871005,8.549e-05,111310.0,111300.0,0.87732701]
[1756237871231,8.549e-05,111310.0,111300.0,0.87432701]
[1756237871430,8.549e-05,111310.0,111300.0,0.88032701]
[1756237872568,8.549e-05,111310.0,111300.0,0.39807084]
[1756237872754,8.549e-05,111310.0,111300.0,0.88032701]
[1756237873096,8.549e-05,111310.0,111300.0,1.28032701]
[1756237876239,8.549e-05,111310.0,111300.0,0.79807084]
[1756237876587,8.549e-05,111310.0,111300.0,1.28032701]
[1756237877895,8.549e-05,111310.0,111300.0,0.79519084]
[1756237878111,8.549e-05,111310.0,111300.0,1.44664701]
[1756237878542,8.549e-05,111310.0,111300.0,0.96439084]
[1756237878745,8.549e-05,111310.0,111300.0,1.44664701]
[1756237878949,8.549e-05,111310.0,111300.0,1.66439084]
[1756237879171,8.549e-05,111310.0,111300.0,2.14664701]
[1756237880222,8.549e-05,111310.0,111300.0,1.66423084]
[1756237880438,0.23223993,111360.0,111340.0,0.17961567]
[1756237880654,0.1911646,111360.0,111350.0,0.23812]
[1756237880886,0.1918546,111360.0,111350.0,0.23812]
[1756237881109,0.1929546,111360.0,111350.0,0.23812]
[1756237881326,0.1922646,111360.0,111350.0,0.23812]
[1756237881551,0.1922646,111360.0,111350.0,0.23816]
[1756237881765,0.1922646,111360.0,111350.0,0.2383427]
[1756237882203,0.1929546,111360.0,111350.0,0.2383427]
[1756237882627,0.1929546,111360.0,111350.0,0.2383027]
[1756237882870,0.1929546,111360.0,111350.0,0.0712227]
[1756237883086,0.1929546,111360.0,111350.0,0.2412627]
[1756237883324,0.2429546,111360.0,111350.0,0.2412227]
[1756237883792,0.2429546,111360.0,111350.0,0.0722227]
[1756237884025,0.2429546,111360.0,111350.0,0.2411827]
[1756237884700,0.2422646,111360.0,111350.0,0.2411827]
[1756237886960,0.5829546,111360.0,111350.0,0.0031427]
[1756237887219,3.64854154,111360.0,111350.0,0.0031427]
[1756237887442,3.6206606,111360.0,111350.0,0.0031427]
[1756237887647,3.6476786,111360.0,111350.0,0.0031427]
[1756237888071,3.6476786,111360.0,111350.0,0.0001427]
[1756237888987,0.17966223,111320.0,111310.0,0.00307]
[1756237889217,0.17966223,111320.0,111310.0,0.17267]
[1756237889437,0.17966223,111320.0,111310.0,0.17474]
[1756237889907,0.18076223,111320.0,111310.0,0.17474]
[1756237890345,0.17966042,111330.0,111310.0,0.4629784]
[1756237890578,0.17966223,111320.0,111310.0,0.35149118]
[1756237891010,0.18863916,111340.0,111320.0,0.17966223]
[1756237891237,0.52863916,111340.0,111330.0,0.17012]
[1756237891450,0.52973916,111340.0,111330.0,0.17526]
[1756237891662,0.52973916,111340.0,111330.0,0.17012]
[1756237892653,0.52973916,111340.0,111330.0,0.17112]
[1756237892863,0.52973916,111340.0,111330.0,0.17626]
[1756237893235,0.52973916,111340.0,111330.0,0.17112]
[1756237893858,0.52973916,111340.0,111330.0,0.17419]
[1756237894279,0.52973916,111340.0,111330.0,0.17212]
[1756237894496,0.52973916,111340.0,111330.0,0.002]
[1756237894709,0.53042916,111340.0,111330.0,0.002]
[1756237894914,0.53042916,111340.0,111330.0,0.17216]
[1756237895361,0.52973916,111340.0,111330.0,0.17216]
[1756237897248,0.30447492,111340.0,111330.0,0.17216]
[1756237897458,0.49311489,111340.0,111330.0,0.17216]
[1756237899331,0.49311489,111340.0,111330.0,0.002]
[1756237900086,0.49201489,111340.0,111330.0,0.00718]
[1756237900471,0.49311489,111340.0,111330.0,0.00718]
[1756237900679,0.49311489,111340.0,111330.0,0.00504]
[1756237901312,0.49311489,111340.0,111330.0,0.002]
[1756237905250,0.49311489,111340.0,111330.0,0.00504]
[1756237905458,0.49311489,111340.0,111330.0,0.00718]
[1756237906492,0.49201489,111340.0,111330.0,0.00718]
[1756237907462,0.18863997,111340.0,111330.0,0.00718]
[1756237907899,0.18863997,111340.0,111330.0,0.00942557]
[1756237908112,0.18863997,111340.0,111330.0,0.00718]
[1756237908517,0.18863997,111340.0,111330.0,0.00942557]
[1756237908735,0.18863997,111340.0,111330.0,0.18907166]
[1756237908968,0.17965848,111340.0,111330.0,0.18682609]
[1756237909179,0.17965243,111350.0,111330.0,0.25590609]
[1756237909391,0.17965243,111350.0,111340.0,0.17448537]
[1756237909603,0.17965243,111350.0,111340.0,0.17662537]
[1756237911266,0.17965243,111350.0,111340.0,0.39889048]
[1756237911481,0.17965243,111350.0,111340.0,0.39664511]
[1756237911683,0.25014448,111360.0,111340.0,0.39664511]
[1756237911888,0.25014448,111360.0,111350.0,0.184899]
[1756237912042,0.25014448,111360.0,111350.0,0.18479383]
[1756237912237,0.2386531,111360.0,111350.0,0.18479383]
[1756237912457,0.2386531,111360.0,111350.0,0.24241972]
[1756237912700,0.24976675,111360.0,111350.0,0.24241972]
[1756237913135,0.24976675,111360.0,111350.0,0.0629487]
[1756237913363,0.24976675,111360.0,111350.0,0.06519387]
[1756237913786,0.24976675,111360.0,111350.0,0.2448077]
[1756237913993,0.24976675,111360.0,111350.0,0.24256253]
[1756237914197,0.24976675,111360.0,111350.0,0.17388281]
[1756237914612,0.2295977,111360.0,111350.0,0.35574181]
[1756237914812,0.2295977,111360.0,111350.0,0.35349664]
[1756237915639,0.24122929,111360.0,111350.0,0.35349664]
[1756237916097,0.24122929,111360.0,111350.0,0.00532281]
[1756237916274,0.24122929,111360.0,111350.0,0.17432281]
[1756237916472,0.24122929,111360.0,111350.0,0.35393664]
[1756237918848,0.24122929,111360.0,111350.0,0.00532281]
[1756237919193,0.24122929,111360.0,111350.0,0.17420281]
[1756237919841,0.24122929,111360.0,111350.0,0.39761105]
[1756237920302,0.24122929,111360.0,111350.0,0.21799722]
[1756237920504,0.24122929,111360.0,111350.0,0.17420281]
[1756237921713,0.24232929,111360.0,111350.0,0.00014281]
[1756237921941,0.24232929,111360.0,111350.0,0.16962281]
[1756237922173,0.24232929,111360.0,111350.0,0.00014281]
[1756237922416,0.24232929,111360.0,111350.0,0.16942281]
[1756237922899,0.24122929,111360.0,111350.0,0.18880909]
[1756237923114,0.24232929,111360.0,111350.0,0.19184909]
[1756237923332,0.24232929,111360.0,111350.0,0.17460281]
[1756237923548,0.24122929,111360.0,111350.0,0.17460281]
[1756237924390,0.24232929,111360.0,111350.0,0.17460281]
[1756237924638,0.24232929,111360.0,111350.0,0.17246281]
[1756237924855,0.24232929,111360.0,111350.0,0.17460281]
[1756237925533,0.24232929,111360.0,111350.0,0.00318281]
[1756237925747,0.24232929,111360.0,111350.0,0.16906281]
[1756237926389,0.2306977,111360.0,111350.0,0.16906281]
[1756237927039,0.2306977,111360.0,111350.0,0.17425281]
[1756237928400,0.2306977,111360.0,111350.0,0.00533281]
[1756237928832,0.2306977,111360.0,111350.0,0.17381281]
[1756237930290,0.2306977,111360.0,111350.0,0.16862281]
[1756237930503,0.2306977,111360.0,111350.0,0.17170281]
[1756237931197,0.2306977,111360.0,111350.0,0.17381281]
[1756237931351,0.2306977,111360.0,111350.0,0.00322281]
[1756237931551,0.2306977,111360.0,111350.0,0.16834281]
[1756237932366,0.2306977,111360.0,111350.0,0.17142281]
[1756237932796,0.2295977,111360.0,111350.0,0.21263034]
[1756237933383,0.2295977,111360.0,111350.0,0.17353281]
[1756237934449,0.2295977,111360.0,111350.0,0.17577798]
[1756237936598,0.2295977,111360.0,111350.0,0.35539181]
[1756237936599,0.05,111360.0,111350.0,0.35539181]
[1756237936811,0.2295977,111360.0,111350.0,0.35314664]
[1756237937020,0.05,111360.0,111350.0,0.84681555]
[1756237937226,0.05,111360.0,111350.0,0.93826084]
[1756237937648,0.05,111360.0,111350.0,0.44459193]
[1756237938269,0.05,111360.0,111350.0,0.44659193]
[1756237938563,0.2295977,111360.0,111350.0,0.44579193]
[1756237938706,0.2295977,111360.0,111350.0,0.27839193]
[1756237938928,0.2295977,111360.0,111350.0,0.44575193]
[1756237939126,0.05,111360.0,111350.0,0.44575193]
[1756237939332,0.2295977,111360.0,111350.0,0.27839193]
[1756237939540,0.2295977,111360.0,111350.0,0.44575193]
[1756237940992,0.2295977,111360.0,111350.0,0.45575193]
[1756237941732,0.2295977,111360.0,111350.0,0.28839193]
[1756237941944,0.2295977,111360.0,111350.0,0.45535193]
[1756237942361,0.2306977,111360.0,111350.0,0.2756981]
[1756237942568,0.2295977,111360.0,111350.0,0.18425281]
[1756237942999,0.2295977,111360.0,111350.0,0.18417281]
[1756237943211,0.2306977,111360.0,111350.0,0.18413281]
[1756237943421,0.2306977,111360.0,111350.0,0.17898281]
[1756237944723,0.2295977,111360.0,111350.0,0.45523193]
[1756237944924,0.2295977,111360.0,111350.0,0.2756181]
[1756237945136,0.2295977,111360.0,111350.0,0.45523193]
[1756237946967,0.05,111360.0,111350.0,0.45523193]
[1756237947181,0.2295977,111360.0,111350.0,0.52431193]
[1756237947823,0.05,111360.0,111350.0,0.52431193]
[1756237948048,0.05,111360.0,111350.0,1.01798084]
[1756237948722,0.05,111360.0,111350.0,0.52431193]
[1756237949916,0.05,111360.0,111350.0,1.01698084]
[1756237950127,0.05,111360.0,111350.0,1.01898084]
[1756237950346,0.05,111360.0,111350.0,1.01798084]
[1756237950801,0.05,111360.0,111350.0,1.01998084]
[1756237951017,0.05,111360.0,111350.0,1.11144286]
[1756237951801,0.05,111360.0,111350.0,1.10944286]
[1756237952013,0.05,111360.0,111350.0,1.10744286]
[1756237952228,0.05,111360.0,111350.0,0.94060286]
[1756237952441,0.05,111360.0,111350.0,0.61461395]
[1756237952650,0.05,111360.0,111350.0,1.10828286]
[1756237953288,0.05,111360.0,111350.0,1.11128286]
[1756237953500,0.05,111360.0,111350.0,1.11528286]
[1756237954364,0.05,111360.0,111350.0,0.62161395]
[1756237954584,0.05,111360.0,111350.0,1.11528286]
[1756237955522,0.19937917,111390.0,111360.0,0.1795977]
[1756237955778,0.18854468,111380.0,111370.0,0.35439109]
[1756237956017,0.17956545,111380.0,111370.0,0.35201157]
[1756237956590,0.19937917,111390.0,111370.0,0.35201157]
[1756237956822,0.18861454,111390.0,111380.0,0.07216]
[1756237957196,0.18861454,111390.0,111380.0,0.07440456]
[1756237957407,0.18971454,111390.0,111380.0,0.11673817]
[1756237958096,0.18971454,111390.0,111380.0,0.23616]
[1756237958329,0.18971454,111390.0,111380.0,0.24122]
[1756237958552,0.18971454,111390.0,111380.0,0.23616]
[1756237959850,0.18971454,111390.0,111380.0,0.27671183]
[1756237960064,0.18971454,111390.0,111380.0,0.06908]
[1756237960281,0.18971454,111390.0,111380.0,0.23608]
[1756237962487,0.18971454,111390.0,111380.0,0.24114]
[1756237963159,0.18971454,111390.0,111380.0,0.23608]
[1756237963489,0.18971454,111390.0,111380.0,0.06908]
[1756237963662,0.18971454,111390.0,111380.0,0.23616]
[1756237964274,0.18861454,111390.0,111380.0,0.24122]
[1756237964479,0.18861454,111390.0,111380.0,0.28241108]
[1756237964820,0.18971454,111390.0,111380.0,0.27735108]
[1756237965157,0.18971454,111390.0,111380.0,0.28042108]
[1756237966205,0.18971454,111390.0,111380.0,0.27735108]
[1756237966206,0.19083373,111390.0,111380.0,0.27735108]
[1756237966560,0.19083373,111390.0,111380.0,0.28042108]
[1756237966958,0.18973373,111390.0,111380.0,0.31045319]
[1756237967167,0.19083373,111390.0,111380.0,0.31045319]
[1756237967788,0.19083373,111390.0,111380.0,0.27767108]
[1756237967996,0.19083373,111390.0,111380.0,0.27755108]
[1756237968195,0.19083373,111390.0,111380.0,0.28062108]
[1756237968396,0.18973373,111390.0,111380.0,0.28261108]
[1756237968639,0.18973373,111390.0,111380.0,0.28257108]
[1756237968837,0.18973373,111390.0,111380.0,0.32878633]
[1756237969014,0.19083373,111390.0,111380.0,0.32878633]
[1756237969229,0.19083373,111390.0,111380.0,0.28257108]
[1756237969602,0.18973373,111390.0,111380.0,0.24138]
[1756237969815,0.19083373,111390.0,111380.0,0.24138]
[1756237970047,0.19083373,111390.0,111380.0,0.07414]
[1756237970372,0.1795977,111360.0,111350.0,0.3074681]
[1756237970491,0.1795977,111360.0,111350.0,0.77121281]
[1756237970691,0.1795977,111360.0,111350.0,0.93813281]
[1756237970893,0.1795977,111360.0,111350.0,0.94116281]
[1756237971132,0.1795977,111360.0,111350.0,0.24116281]
[1756237971337,0.1795977,111360.0,111350.0,0.07428281]
[1756237971543,0.1795977,111360.0,111350.0,0.45761823]
[1756237971744,0.1795977,111360.0,111350.0,0.45312789]
[1756237971973,0.1795977,111360.0,111350.0,0.27351406]
[1756237972209,0.1795977,111360.0,111350.0,0.45312789]
[1756237972488,0.1795977,111360.0,111350.0,0.14801789]
[1756237972661,0.1795977,111360.0,111350.0,0.31485789]
[1756237973429,0.1806977,111360.0,111350.0,0.14295789]
[1756237973649,0.1806977,111360.0,111350.0,0.24298281]
[1756237974842,0.1806977,111360.0,111350.0,0.24804281]
[1756237975269,0.1806977,111360.0,111350.0,0.24605281]
[1756237975514,0.1806977,111360.0,111350.0,0.24804281]
[1756237975727,0.1795977,111360.0,111350.0,0.24804281]
[1756237976514,0.1795977,111360.0,111350.0,0.26846815]
[1756237976710,0.1795977,111360.0,111350.0,0.24804281]
[1756237976711,0.1806977,111360.0,111350.0,0.24804281]
[1756237976915,0.1795977,111360.0,111350.0,0.24804281]
[1756237980209,0.1806977,111360.0,111350.0,0.24804281]
[1756237980442,0.1806977,111360.0,111350.0,0.24254281]
[1756237981333,0.1806977,111360.0,111350.0,0.07622281]
[1756237981758,0.1806977,111360.0,111350.0,0.24246281]
[1756237982404,0.1806977,111360.0,111350.0,0.23546281]
[1756237982849,0.1806977,111360.0,111350.0,0.06922281]
[1756237983063,0.5213877,111360.0,111350.0,0.16638281]
[1756237983317,0.5213877,111360.0,111350.0,0.16718281]
[1756237983528,0.5206977,111360.0,111350.0,0.16718281]
[1756237983994,0.5213877,111360.0,111350.0,0.00114281]
[1756237984209,0.5213877,111360.0,111350.0,0.16706281]
[1756237984635,0.5213877,111360.0,111350.0,0.00214281]
[1756237986884,0.17962996,111340.0,111330.0,0.06908]
[1756237987115,0.17962996,111340.0,111330.0,0.23494289]
[1756237987365,0.18072996,111340.0,111330.0,0.16586289]
[1756237988212,0.18072996,111340.0,111330.0,0.16886289]
[1756237988641,0.18072996,111340.0,111330.0,0.17286289]
[1756237988853,0.18072996,111340.0,111330.0,0.16578289]
[1756237989330,0.17962996,111340.0,111330.0,0.18971418]
[1756237989559,0.17962996,111340.0,111330.0,0.00720289]
[1756237989786,0.17962996,111340.0,111330.0,0.17284289]
[1756237991373,0.19026857,111340.0,111330.0,0.17284289]
[1756237992061,0.17962996,111340.0,111330.0,0.17284289]
[1756237993138,0.17962996,111340.0,111330.0,0.00720289]
[1756237993363,0.17962996,111340.0,111330.0,0.17288289]
[1756237993697,0.17962996,111340.0,111330.0,0.19017118]
[1756237994364,0.17962996,111340.0,111330.0,0.17288289]
[1756237994564,0.17962996,111340.0,111330.0,0.00720289]
[1756237994764,0.17962996,111340.0,111330.0,0.17288289]
[1756237995005,0.17962996,111340.0,111330.0,0.17272289]
[1756237995642,0.17962996,111340.0,111330.0,0.17496846]
[1756237997310,0.17962996,111340.0,111330.0,0.21043142]
[1756237997533,0.17962996,111340.0,111330.0,0.20818585]
[1756237998396,0.17962996,111340.0,111330.0,0.17272289]
[1756237998794,0.17962996,111340.0,111330.0,0.17496846]
[1756237999568,0.17962834,111350.0,111330.0,0.35236898]
[1756237999780,0.17962834,111350.0,111340.0,0.00293]
[1756237999989,0.1900376,111350.0,111340.0,0.00506]
[1756238000189,0.17962834,111350.0,111340.0,0.00506]
[1756238000587,0.18993248,111350.0,111340.0,0.00506]
[1756238000803,0.17962834,111350.0,111340.0,0.2582607]
[1756238001006,0.17962834,111350.0,111340.0,0.25376996]
[1756238001920,0.17962834,111350.0,111340.0,0.25476996]
[1756238002325,0.17962834,111350.0,111340.0,0.07514]
[1756238002498,0.17962834,111350.0,111340.0,0.24006]
[1756238003043,0.18072834,111350.0,111340.0,0.2348]
[1756238003478,0.18072834,111350.0,111340.0,0.07108]
[1756238003696,0.18141834,111350.0,111340.0,0.2358]
[1756238003910,0.18072834,111350.0,111340.0,0.2358]
[1756238005588,0.18072834,111350.0,111340.0,0.16672]
[1756238006302,0.18072834,111350.0,111340.0,0.16648]
[1756238006998,0.18072834,111350.0,111340.0,0.002]
[1756238007231,0.18072834,111350.0,111340.0,0.16628]
[1756238008335,0.18072834,111350.0,111340.0,0.002]
[1756238008578,0.18072834,111350.0,111340.0,0.16628]
[1756238008796,0.18141834,111350.0,111340.0,0.16612]
[1756238008988,0.18141834,111350.0,111340.0,0.002]
[1756238009460,0.18072834,111350.0,111340.0,0.002]
[1756238010380,0.17962834,111350.0,111340.0,0.00706]
[1756238010570,0.18072834,111350.0,111340.0,0.00493]
[1756238010798,0.18072834,111350.0,111340.0,0.00706]
[1756238017958,0.18072834,111350.0,111340.0,0.002]
[1756238018163,0.18072834,111350.0,111340.0,0.00522]
[1756238018518,0.17962834,111350.0,111340.0,0.00731]
[1756238019112,0.18072834,111350.0,111340.0,0.00731]
[1756238019326,0.18072834,111350.0,111340.0,0.00522]
[1756238019749,0.18072834,111350.0,111340.0,0.002]
[1756238020389,0.18072834,111350.0,111340.0,0.00522]
[1756238020816,0.77942141,111360.0,111340.0,0.00731]
[1756238021064,0.17962834,111350.0,111340.0,0.00731]
[1756238021287,0.17962834,111350.0,111340.0,0.00522]
[1756238021525,0.17962834,111350.0,111340.0,0.00731]
[1756238021740,0.17962834,111350.0,111340.0,0.00422]
[1756238021958,0.17962996,111340.0,111330.0,0.16326289]
[1756238022169,0.17962996,111340.0,111330.0,0.16535289]
[1756238022382,0.17962996,111340.0,111330.0,0.17935329]
[1756238022593,0.17962996,111340.0,111330.0,0.18257329]
[1756238023043,0.17962834,111350.0,111330.0,0.18257329]
[1756238023226,0.17962996,111340.0,111330.0,0.17935329]
[1756238023847,0.17962996,111340.0,111330.0,0.18257329]
[1756238024505,0.17962996,111340.0,111330.0,0.18657329]
[1756238025468,0.17962996,111340.0,111330.0,0.17257289]
[1756238025888,0.17962996,111340.0,111330.0,0.00945289]
[1756238026094,0.17962996,111340.0,111330.0,0.17257289]
[1756238026740,0.17962996,111340.0,111330.0,0.00945289]
[1756238026914,0.17962996,111340.0,111330.0,0.17257289]
[1756238027792,0.17962996,111340.0,111330.0,0.00945289]
[1756238028005,0.17962996,111340.0,111330.0,0.17257289]
[1756238028224,0.14182323,111350.0,111330.0,0.17257289]
[1756238028430,0.17962996,111340.0,111330.0,0.17257289]
[1756238028975,0.17962996,111340.0,111330.0,0.17057289]
[1756238029179,0.17962996,111340.0,111330.0,0.16857289]
[1756238029632,0.17962996,111340.0,111330.0,0.21130438]
[1756238030091,0.17962996,111340.0,111330.0,0.16957289]
[1756238030742,0.17962996,111340.0,111330.0,0.00745289]
[1756238030953,0.17962996,111340.0,111330.0,0.00645289]
[1756238031163,0.17962996,111340.0,111330.0,0.16857289]
[1756238031376,0.17962996,111340.0,111330.0,0.17257289]
[1756238035308,0.17962996,111340.0,111330.0,0.00414289]
[1756238035526,0.17962996,111340.0,111330.0,0.16722289]
[1756238035933,0.17962996,111340.0,111330.0,0.00414289]
[1756238036201,0.17962996,111340.0,111330.0,0.16722289]
[1756238037068,0.17962996,111340.0,111330.0,0.17044289]
[1756238037282,0.17962996,111340.0,111330.0,0.16722289]
[1756238038641,0.17962996,111340.0,111330.0,0.17044289]
[1756238038855,0.17962996,111340.0,111330.0,0.16722289]
[1756238039065,0.20664896,111340.0,111330.0,0.17044289]
[1756238039278,0.20664896,111340.0,111330.0,0.17253289]
[1756238039536,0.17962996,111340.0,111330.0,0.17253289]
[1756238040400,0.17962996,111340.0,111330.0,0.03361418]
[1756238040618,0.17962996,111340.0,111330.0,0.00414289]
[1756238040835,0.17962996,111340.0,111330.0,0.00736289]
[1756238041281,0.17962996,111340.0,111330.0,0.17044289]
[1756238041508,0.51962996,111340.0,111330.0,0.00414289]
[1756238041752,0.68270996,111340.0,111330.0,1e-08]
[1756238041969,0.71055903,111340.0,111330.0,1e-08]
[1756238042188,0.72461727,111340.0,111330.0,1e-08]
[1756238042405,0.6967682,111340.0,111330.0,1e-08]
[1756238043471,0.6987682,111340.0,111330.0,1e-08]
[1756238043680,0.17966223,111320.0,111310.0,0.1663]
[1756238043892,0.17966223,111320.0,111310.0,0.16644298]
[1756238044108,0.17966223,111320.0,111310.0,0.16853298]
[1756238045173,0.17966223,111320.0,111310.0,0.00545298]
[1756238045427,0.17966223,111320.0,111310.0,0.16640298]
[1756238045614,0.17966223,111320.0,111310.0,0.16849298]
[1756238046095,0.17966223,111320.0,111310.0,0.19225028]
[1756238046311,0.19006564,111320.0,111310.0,0.16849298]
[1756238046523,0.19006564,111320.0,111310.0,0.17073895]
[1756238047200,0.17966223,111320.0,111310.0,0.17073895]
[1756238047684,0.17966067,111330.0,111320.0,0.17966223]
[1756238047895,0.17966067,111330.0,111320.0,0.09649529]
[1756238048114,0.17966067,111330.0,111320.0,0.00505]
[1756238049009,0.17966067,111330.0,111320.0,0.00729577]
[1756238050752,0.17966067,111330.0,111320.0,0.07637577]
[1756238052754,0.17966067,111330.0,111320.0,0.23713]
[1756238054074,0.17966067,111330.0,111320.0,0.07413]
[1756238054283,0.17966067,111330.0,111320.0,0.23713]
[1756238054505,0.17966067,111330.0,111320.0,0.16805]